fUSD/lending_fUSD_20250301
["ID","MTS","AMOUNT","RATE_DAILY","PERIOD"]
[354993844,1740858660148,-500.0,0.00025752,2]
[354993845,1740858660158,-783.37,0.00025752,2]
[354993846,1740858660173,-566.09,0.00025752,2]
[354993847,1740858660184,-507.39,0.00025752,2]
[354993848,1740858660195,-667.189794,0.00025753,2]
[354993849,1740858660205,-865.056936,0.00025753,2]
[354993850,1740858660215,-500.0,0.00025753,2]
[354993851,1740858660226,-500.0,0.00025753,2]
[354993852,1740858660237,-500.0,0.00025753,2]
[354993853,1740858660250,-500.0,0.00025753,2]
[354993854,1740858660260,-500.0,0.00025753,2]
[354993855,1740858660270,-500.0,0.00025753,2]
[354993856,1740858660280,-500.0,0.00025753,2]
[354993857,1740858660292,-500.0,0.00025753,2]
[354993858,1740858660302,-500.0,0.00025753,2]
[354993859,1740858660311,-500.0,0.00025753,2]
[354993860,1740858660321,-500.0,0.00025753,2]
[354993861,1740858660331,-500.0,0.00025753,2]
[354993862,1740858660341,-500.0,0.00025753,2]
[354993863,1740858660351,-500.0,0.00025753,2]
[354993864,1740858660361,-500.0,0.00025753,2]
[354993865,1740858660371,-500.0,0.00025753,2]
[354993866,1740858660381,-500.0,0.00025753,2]
[354993867,1740858660391,-500.0,0.00025753,2]
[354993868,1740858660400,-500.0,0.00025753,2]
[354993869,1740858660410,-500.0,0.00025753,2]
[354993870,1740858660420,-500.0,0.00025753,2]
[354993871,1740858660431,-500.0,0.00025753,2]
[354993872,1740858660441,-500.0,0.00025753,2]
[354993873,1740858660452,-500.0,0.00025753,2]
[354993874,1740858660462,-500.0,0.00025753,2]
[354993875,1740858660472,-500.0,0.00025753,2]
[354993876,1740858660482,-500.0,0.00025753,2]
[354993877,1740858660493,-500.0,0.00025753,2]
[354993878,1740858660503,-500.0,0.00025753,2]
[354993879,1740858660514,-500.0,0.00025753,2]
[354993880,1740858660524,-340.22305891,0.00025753,2]
[354993881,1740858660534,-500.0,0.00025753,2]
[354993882,1740858660544,-500.0,0.00025753,2]
[354993883,1740858660554,-500.0,0.00025753,2]
[354993884,1740858660564,-500.0,0.00025753,2]
[354993885,1740858660575,-500.0,0.00025753,2]
[354993886,1740858660584,-500.0,0.00025753,2]
[354993887,1740858660594,-500.0,0.00025753,2]
[354993888,1740858660604,-500.0,0.00025753,2]
[354993889,1740858660614,-500.0,0.00025753,2]
[354993890,1740858660624,-500.0,0.00025753,2]
[354993891,1740858660634,-500.0,0.00025753,2]
[354993892,1740858660646,-500.0,0.00025753,2]
[354993893,1740858660656,-500.0,0.00025753,2]
[354993894,1740858660666,-500.0,0.00025753,2]
[354993895,1740858660676,-500.0,0.00025753,2]
[354993896,1740858660686,-500.0,0.00025753,2]
[354993897,1740858660696,-500.0,0.00025753,2]
[354993898,1740858660707,-500.0,0.00025753,2]
[354993899,1740858660717,-500.0,0.00025753,2]
[354993900,1740858660727,-500.0,0.00025753,2]
[354993901,1740858660736,-500.0,0.00025753,2]
[354993902,1740858660747,-500.0,0.00025753,2]
[354993903,1740858660758,-500.0,0.00025753,2]
[354993904,1740858660768,-500.0,0.00025753,2]
[354993905,1740858660778,-500.0,0.00025753,2]
[354993906,1740858660789,-500.0,0.00025753,2]
[354993907,1740858660799,-500.0,0.00025753,2]
[354993908,1740858660809,-500.0,0.00025753,2]
[354993909,1740858660819,-500.0,0.00025753,2]
[354993910,1740858660830,-500.0,0.00025753,2]
[354993911,1740858660839,-500.0,0.00025753,2]
[354993912,1740858660850,-500.0,0.00025753,2]
[354993913,1740858660860,-500.0,0.00025753,2]
[354993914,1740858660870,-500.0,0.00025753,2]
[354993915,1740858660880,-500.0,0.00025753,2]
[354993916,1740858660890,-500.0,0.00025753,2]
[354993917,1740858660900,-500.0,0.00025753,2]
[354993918,1740858660911,-500.0,0.00025753,2]
[354993919,1740858660921,-500.0,0.00025753,2]
[354993920,1740858660931,-500.0,0.00025753,2]
[354993921,1740858660941,-500.0,0.00025753,2]
[354993922,1740858660951,-500.0,0.00025753,2]
[354993923,1740858660961,-500.0,0.00025753,2]
[354993924,1740858660971,-524.67,0.00025753,2]
[354993925,1740858660981,-500.0,0.00025753,2]
[354993926,1740858660991,-500.0,0.00025753,2]
[354993927,1740858661002,-500.0,0.00025753,2]
[354993928,1740858661012,-500.0,0.00025753,2]
[354993929,1740858661022,-500.0,0.00025753,2]
[354993930,1740858661032,-821.57,0.00025753,2]
[354993931,1740858661045,-500.0,0.00025753,2]
[354993932,1740858661066,-500.0,0.00025753,2]
[354993933,1740858661076,-500.0,0.00025753,2]
[354993934,1740858661086,-1102.93,0.00025753,2]
[354993935,1740858661097,-421.51279891,0.00025753,2]
[354993936,1740858661107,-507.92,0.00025753,2]
[354993937,1740858661117,-554.05,0.00025753,2]
[354993938,1740858661127,-500.0,0.00025753,2]
[354993939,1740858661137,-500.0,0.00025753,2]
[354993940,1740858661147,-500.0,0.00025753,2]
[354993941,1740858661158,-180.13837027,0.00025753,2]
[354993942,1740858661168,-500.0,0.00025753,2]
[354993943,1740858661178,-500.0,0.00025753,2]
[354993944,1740858661188,-500.0,0.00025753,2]
[354993945,1740858661199,-500.0,0.00025753,2]
[354993946,1740858661210,-500.0,0.00025753,2]
[354993947,1740858661221,-500.0,0.00025753,2]
[354993948,1740858661231,-500.0,0.00025753,2]
[354993949,1740858661242,-500.0,0.00025753,2]
[354993950,1740858661254,-500.0,0.00025753,2]
[354993951,1740858661268,-434.6336845,0.00025753,2]
[354993952,1740858661278,-500.0,0.00025753,2]
[354993953,1740858661288,-500.0,0.00025753,2]
[354993954,1740858661298,-500.0,0.00025753,2]
[354993955,1740858661308,-500.0,0.00025753,2]
[354993956,1740858661318,-500.0,0.00025753,2]
[354993957,1740858661329,-500.0,0.00025753,2]
[354993958,1740858661338,-500.0,0.00025753,2]
[354993959,1740858661348,-500.0,0.00025753,2]
[354993960,1740858661359,-500.0,0.00025753,2]
[354993961,1740858661369,-500.0,0.00025753,2]
[354993962,1740858661379,-500.0,0.00025753,2]
[354993963,1740858661389,-528.74,0.00025753,2]
[354993964,1740858661399,-500.0,0.00025753,2]
[354993965,1740858661409,-500.0,0.00025753,2]
[354993966,1740858661420,-500.0,0.00025753,2]
[354993967,1740858661430,-887.94,0.00025753,2]
[354993968,1740858661441,-500.0,0.00025753,2]
[354993969,1740858661451,-500.0,0.00025753,2]
[354993970,1740858661461,-532.27478267,0.00025753,2]
[354993971,1740858661471,-504.34,0.00025753,2]
[354993972,1740858661481,-500.0,0.00025753,2]
[354993973,1740858661492,-626.91,0.00025753,2]
[354993974,1740858661502,-500.0,0.00025753,2]
[354993975,1740858661514,-500.0,0.00025753,2]
[354993976,1740858661524,-724.79,0.00025753,2]
[354993977,1740858661534,-572.85,0.00025753,2]
[354993978,1740858661544,-500.0,0.00025753,2]
[354993979,1740858661554,-500.0,0.00025753,2]
[354993980,1740858661564,-634.03,0.00025753,2]
[354993981,1740858661574,-544.81,0.00025753,2]
[354993982,1740858661584,-1225.41,0.00025753,2]
[354993983,1740858661595,-500.0,0.00025753,2]
[354993984,1740858661798,-650.4,0.00025753,2]
[354993985,1740858661817,-1646.57,0.00025753,2]
[354993986,1740858661827,-500.0,0.00025753,2]
[354993987,1740858661836,-500.0,0.00025753,2]
[354993988,1740858661846,-500.0,0.00025753,2]
[354993989,1740858661856,-574.95,0.00025753,2]
[354993990,1740858661866,-1000.0,0.00025753,2]
[354993991,1740858661876,-548.18,0.00025753,2]
[354993992,1740858661886,-1162.75,0.00025753,2]
[354993993,1740858661895,-500.0,0.00025753,2]
[354993994,1740858661904,-550.88,0.00025753,2]
[354993995,1740858661914,-500.0,0.00025753,2]
[354993996,1740858661924,-500.0,0.00025753,2]
[354993997,1740858661934,-574.67,0.00025753,2]
[354993998,1740858661943,-500.0,0.00025753,2]
[354993999,1740858661954,-530.38,0.00025753,2]
[354994000,1740858661963,-606.9,0.00025753,2]
[354994001,1740858661972,-500.0,0.00025753,2]
[354994002,1740858661982,-731.69,0.00025753,2]
[354994003,1740858661991,-500.0,0.00025753,2]
[354994004,1740858662001,-500.0,0.00025753,2]
[354994005,1740858662010,-500.0,0.00025753,2]
[354994006,1740858662020,-742.69,0.00025753,2]
[354994007,1740858662030,-500.0,0.00025753,2]
[354994008,1740858662039,-500.0,0.00025753,2]
[354994009,1740858662049,-553.15,0.00025753,2]
[354994010,1740858662058,-282.44080635,0.00025753,2]
[354994011,1740858662067,-500.0,0.00025753,2]
[354994012,1740858662077,-546.6,0.00025753,2]
[354994013,1740858662086,-938.89,0.00025753,2]
[354994014,1740858662095,-500.0,0.00025753,2]
[354994015,1740858662105,-500.0,0.00025753,2]
[354994016,1740858662116,-500.0,0.00025753,2]
[354994017,1740858662126,-500.0,0.00025753,2]
[354994018,1740858662135,-500.0,0.00025753,2]
[354994019,1740858662145,-500.0,0.00025753,2]
[354994020,1740858662155,-500.0,0.00025753,2]
[354994021,1740858662164,-500.0,0.00025753,2]
[354994022,1740858662174,-500.0,0.00025753,2]
[354994023,1740858662184,-500.0,0.00025753,2]
[354994024,1740858662194,-500.0,0.00025753,2]
[354994025,1740858662203,-702.7,0.00025753,2]
[354994026,1740858662213,-500.0,0.00025753,2]
[354994027,1740858662223,-194.29156587,0.00025753,2]
[354994028,1740858662233,-500.0,0.00025753,2]
[354994029,1740858662247,-500.0,0.00025753,2]
[354994030,1740858662256,-544.07877665,0.00025753,2]
[354994031,1740858662267,-962.96,0.00025753,2]
[354994032,1740858662278,-871.98,0.00025753,2]
[354994033,1740858662288,-690.67,0.00025753,2]
[354994034,1740858662297,-500.0,0.00025753,2]
[354994035,1740858662308,-4231.37,0.00025753,2]
[354994036,1740858662320,-500.0,0.00025753,2]
[354994037,1740858662330,-500.0,0.00025753,2]
[354994038,1740858662339,-539.33,0.00025753,2]
[354994039,1740858662349,-500.0,0.00025753,2]
[354994040,1740858662358,-741.36,0.00025753,2]
[354994041,1740858662367,-601.03,0.00025753,2]
[354994042,1740858662377,-6071.89,0.00025753,2]
[354994043,1740858662387,-845.71,0.00025753,2]
[354994044,1740858662397,-720.23,0.00025753,2]
[354994045,1740858662407,-569.42,0.00025753,2]
[354994046,1740858662416,-500.0,0.00025753,2]
[354994047,1740858662439,-500.0,0.00025753,2]
[354994048,1740858662451,-500.0,0.00025753,2]
[354994049,1740858662462,-569.65,0.00025753,2]
[354994050,1740858662473,-683.45,0.00025753,2]
[354994051,1740858662490,-838.27,0.00025753,2]
[354994052,1740858662501,-500.0,0.00025753,2]
[354994053,1740858662513,-837.72,0.00025753,2]
[354994054,1740858662523,-825.34,0.00025753,2]
[354994055,1740858662534,-500.0,0.00025753,2]
[354994056,1740858662544,-500.0,0.00025753,2]
[354994057,1740858662554,-500.0,0.00025753,2]
[354994058,1740858662565,-500.0,0.00025753,2]
[354994059,1740858662575,-500.0,0.00025753,2]
[354994060,1740858662585,-500.0,0.00025753,2]
[354994061,1740858662599,-500.0,0.00025753,2]
[354994062,1740858662612,-500.0,0.00025753,2]
[354994063,1740858662623,-9196.21,0.00025753,2]
[354994064,1740858662634,-500.0,0.00025753,2]
[354994065,1740858662645,-540.61,0.00025753,2]
[354994066,1740858662656,-500.0,0.00025753,2]
[354994067,1740858662667,-500.0,0.00025753,2]
[354994068,1740858662680,-500.0,0.00025753,2]
[354994069,1740858662690,-500.0,0.00025753,2]
[354994070,1740858662701,-1573.23,0.00025753,2]
[354994071,1740858662712,-500.0,0.00025753,2]
[354994072,1740858662723,-747.87,0.00025753,2]
[354994073,1740858662733,-500.0,0.00025753,2]
[354994074,1740858662743,-970.75,0.00025753,2]
[354994075,1740858662754,-500.0,0.00025753,2]
[354994076,1740858662764,-500.0,0.00025753,2]
[354994077,1740858662774,-556.96,0.00025753,2]
[354994078,1740858662785,-1337.47,0.00025753,2]
[354994079,1740858662795,-500.0,0.00025753,2]
[354994080,1740858662807,-519.03,0.00025753,2]
[354994081,1740858662818,-500.0,0.00025753,2]
[354994082,1740858662828,-500.0,0.00025753,2]
[354994083,1740858662839,-500.0,0.00025753,2]
[354994084,1740858662849,-526.62,0.00025753,2]
[354994085,1740858662860,-500.0,0.00025753,2]
[354994086,1740858662870,-1519.99,0.00025753,2]
[354994087,1740858662881,-500.0,0.00025753,2]
[354994088,1740858662891,-500.0,0.00025753,2]
[354994089,1740858662901,-500.0,0.00025753,2]
[354994090,1740858662911,-3027.82,0.00025753,2]
[354994091,1740858662922,-500.0,0.00025753,2]
[354994092,1740858662932,-500.0,0.00025753,2]
[354994093,1740858662948,-204.98313833,0.00025753,2]
[354994094,1740858662959,-7102.79,0.00025753,2]
[354994095,1740858662969,-500.0,0.00025753,2]
[354994096,1740858662980,-500.0,0.00025753,2]
[354994097,1740858662991,-1042.84,0.00025753,2]
[354994098,1740858663001,-500.0,0.00025753,2]
[354994099,1740858663013,-855.2,0.00025753,2]
[354994100,1740858663024,-500.0,0.00025753,2]
[354994101,1740858663036,-500.0,0.00025753,2]
[354994102,1740858663048,-609.64251013,0.00025753,2]
[354994103,1740858663060,-653.93,0.00025753,2]
[354994104,1740858663072,-1305.14,0.00025753,2]
[354994105,1740858663083,-500.0,0.00025753,2]
[354994106,1740858663095,-500.0,0.00025753,2]
[354994107,1740858663106,-1879.13,0.00025753,2]
[354994108,1740858663118,-6933.73867017,0.00025893,2]
[354994109,1740858663128,-634.24147407,0.00025927,2]
[354994110,1740858663140,-4004.38456647,0.00025927,2]
[354994111,1740858663151,-748.62,0.00026,2]
[354994112,1740858663161,-569.78,0.00026026,2]
[354994113,1740858663172,-877.07,0.00026026,2]
[354994114,1740858663183,-500.0,0.00026026,2]
[354994115,1740858663193,-504.7,0.00026026,2]
[354994116,1740858663203,-612.55,0.00026026,2]
[354994117,1740858663214,-500.0,0.00026026,2]
[354994118,1740858663224,-1898.33,0.00026026,2]
[354994119,1740858663234,-500.0,0.00026026,2]
[354994120,1740858663247,-500.0,0.00026026,2]
[354994121,1740858663257,-783.37,0.00026026,2]
[354994122,1740858663268,-566.09,0.00026026,2]
[354994123,1740858663279,-507.39,0.00026026,2]
[354994124,1740858663288,-100000.0,0.00026027,5]
[354994125,1740858663299,-151.0,0.00026027,7]
[354994126,1740858663309,-151.0,0.00026027,7]
[354994127,1740858663320,-667.189794,0.00026027,2]
[354994128,1740858663330,-865.056936,0.00026027,2]
[354994129,1740858663340,-153.066563,0.00026027,7]
[354994130,1740858663350,-500.0,0.00026027,2]
[354994131,1740858663361,-500.0,0.00026027,2]
[354994132,1740858663371,-500.0,0.00026027,2]
[354994133,1740858663381,-500.0,0.00026027,2]
[354994134,1740858663392,-500.0,0.00026027,2]
[354994135,1740858663402,-500.0,0.00026027,2]
[354994136,1740858663412,-500.0,0.00026027,2]
[354994137,1740858663422,-151.0,0.00026027,7]
[354994138,1740858663432,-500.0,0.00026027,2]
[354994139,1740858663442,-155.650989,0.00026027,7]
[354994140,1740858663457,-500.0,0.00026027,2]
[354994141,1740858663468,-500.0,0.00026027,2]
[354994142,1740858663478,-500.0,0.00026027,2]
[354994143,1740858663488,-500.0,0.00026027,2]
[354994144,1740858663498,-500.0,0.00026027,2]
[354994145,1740858663508,-500.0,0.00026027,2]
[354994146,1740858663519,-390.42501348,0.00026027,2]
[354994147,1740858663529,-500.0,0.00026027,2]
[354994148,1740858663540,-151.0,0.00026027,7]
[354994149,1740858663550,-151.0,0.00026027,7]
[354994150,1740858663560,-500.0,0.00026027,2]
[354994151,1740858663570,-161.418581,0.00026027,7]
[354994152,1740858663580,-500.0,0.00026027,2]
[354994153,1740858663590,-500.0,0.00026027,2]
[354994154,1740858663601,-500.0,0.00026027,2]
[354994155,1740858663612,-500.0,0.00026027,2]
[354994156,1740858663622,-500.0,0.00026027,2]
[354994157,1740858663633,-500.0,0.00026027,2]
[354994158,1740858663643,-151.0,0.00026027,7]
[354994159,1740858663653,-500.0,0.00026027,2]
[354994160,1740858663664,-500.0,0.00026027,2]
[354994161,1740858663674,-500.0,0.00026027,2]
[354994162,1740858663684,-500.0,0.00026027,2]
[354994163,1740858663694,-500.0,0.00026027,2]
[354994164,1740858663704,-500.0,0.00026027,2]
[354994165,1740858663714,-500.0,0.00026027,2]
[354994166,1740858663725,-500.0,0.00026027,2]
[354994167,1740858663735,-500.0,0.00026027,2]
[354994168,1740858663745,-500.0,0.00026027,2]
[354994169,1740858663755,-500.0,0.00026027,2]
[354994170,1740858663767,-500.0,0.00026027,2]
[354994171,1740858663777,-500.0,0.00026027,2]
[354994172,1740858663787,-500.0,0.00026027,2]
[354994173,1740858663797,-500.0,0.00026027,2]
[354994174,1740858663807,-500.0,0.00026027,2]
[354994175,1740858663817,-500.0,0.00026027,2]
[354994176,1740858663828,-500.0,0.00026027,2]
[354994177,1740858663839,-500.0,0.00026027,2]
[354994178,1740858663849,-500.0,0.00026027,2]
[354994179,1740858663859,-500.0,0.00026027,2]
[354994180,1740858663869,-500.0,0.00026027,2]
[354994181,1740858663879,-500.0,0.00026027,2]
[354994182,1740858663890,-500.0,0.00026027,2]
[354994183,1740858663900,-500.0,0.00026027,2]
[354994184,1740858663910,-500.0,0.00026027,2]
[354994185,1740858663921,-500.0,0.00026027,2]
[354994186,1740858663931,-500.0,0.00026027,2]
[354994187,1740858663946,-500.0,0.00026027,2]
[354994188,1740858663956,-500.0,0.00026027,2]
[354994189,1740858663966,-500.0,0.00026027,2]
[354994190,1740858663977,-500.0,0.00026027,2]
[354994191,1740858663987,-500.0,0.00026027,2]
[354994192,1740858663997,-500.0,0.00026027,2]
[354994193,1740858664007,-500.0,0.00026027,2]
[354994194,1740858664019,-190.00572477,0.00026027,2]
[354994195,1740858664029,-500.0,0.00026027,2]
[354994196,1740858664039,-500.0,0.00026027,2]
[354994197,1740858664049,-500.0,0.00026027,2]
[354994198,1740858664059,-500.0,0.00026027,2]
[354994199,1740858664069,-500.0,0.00026027,2]
[354994200,1740858664079,-500.0,0.00026027,2]
[354994201,1740858664089,-500.0,0.00026027,2]
[354994202,1740858664099,-500.0,0.00026027,2]
[354994203,1740858664109,-529.08725337,0.00026027,2]
[354994204,1740858664119,-500.0,0.00026027,2]
[354994205,1740858664129,-151.0,0.00026027,7]
[354994206,1740858664138,-500.0,0.00026027,2]
[354994207,1740858664148,-500.0,0.00026027,2]
[354994208,1740858664157,-500.0,0.00026027,2]
[354994209,1740858664167,-500.0,0.00026027,2]
[354994210,1740858664177,-524.67,0.00026027,2]
[354994211,1740858664187,-219.024794,0.00026027,7]
[354994212,1740858664196,-500.0,0.00026027,2]
[354994213,1740858664206,-500.0,0.00026027,2]
[354994214,1740858664215,-500.0,0.00026027,2]
[354994215,1740858664225,-500.0,0.00026027,2]
[354994216,1740858664236,-500.0,0.00026027,2]
[354994217,1740858664248,-821.57,0.00026027,2]
[354994218,1740858664258,-500.0,0.00026027,2]
[354994219,1740858664269,-500.0,0.00026027,2]
[354994220,1740858664279,-500.0,0.00026027,2]
[354994221,1740858664386,-1102.93,0.00026027,2]
[354994222,1740858664396,-507.92,0.00026027,2]
[354994223,1740858664406,-554.05,0.00026027,2]
[354994224,1740858664416,-500.0,0.00026027,2]
[354994225,1740858664425,-500.0,0.00026027,2]
[354994226,1740858664435,-500.0,0.00026027,2]
[354994227,1740858664444,-151.0,0.00026027,7]
[354994228,1740858664453,-500.0,0.00026027,2]
[354994229,1740858664463,-500.0,0.00026027,2]
[354994230,1740858664472,-500.0,0.00026027,2]
[354994231,1740858664482,-151.0,0.00026027,7]
[354994232,1740858664491,-500.0,0.00026027,2]
[354994233,1740858664501,-500.0,0.00026027,2]
[354994234,1740858664510,-500.0,0.00026027,2]
[354994235,1740858664519,-500.0,0.00026027,2]
[354994236,1740858664529,-500.0,0.00026027,2]
[354994237,1740858664538,-151.0,0.00026027,7]
[354994238,1740858664547,-500.0,0.00026027,2]
[354994239,1740858664557,-500.0,0.00026027,2]
[354994240,1740858664566,-500.0,0.00026027,2]
[354994241,1740858664575,-500.0,0.00026027,2]
[354994242,1740858664585,-500.0,0.00026027,2]
[354994243,1740858664594,-500.0,0.00026027,2]
[354994244,1740858664604,-348.32502457,0.00026027,2]
[354994245,1740858664613,-500.0,0.00026027,2]
[354994246,1740858664623,-500.0,0.00026027,2]
[354994247,1740858664633,-234.01467862,0.00026027,2]
[354994248,1740858664642,-500.0,0.00026027,2]
[354994249,1740858664651,-151.0,0.00026027,7]
[354994250,1740858664660,-528.74,0.00026027,2]
[354994251,1740858664670,-500.0,0.00026027,2]
[354994252,1740858664679,-500.0,0.00026027,2]
[354994253,1740858664688,-500.0,0.00026027,2]
[354994254,1740858664697,-887.94,0.00026027,2]
[354994255,1740858664706,-500.0,0.00026027,2]
[354994256,1740858664715,-500.0,0.00026027,2]
[354994257,1740858664725,-504.34,0.00026027,2]
[354994258,1740858664735,-500.0,0.00026027,2]
[354994259,1740858664744,-626.91,0.00026027,2]
[354994260,1740858664754,-500.0,0.00026027,2]
[354994261,1740858664763,-500.0,0.00026027,2]
[354994262,1740858664773,-151.0,0.00026027,7]
[354994263,1740858664782,-151.0,0.00026027,7]
[354994264,1740858664791,-151.0,0.00026027,7]
[354994265,1740858664801,-724.79,0.00026027,2]
[354994266,1740858664811,-572.85,0.00026027,2]
[354994267,1740858664820,-500.0,0.00026027,2]
[354994268,1740858664829,-500.0,0.00026027,2]
[354994269,1740858664839,-634.03,0.00026027,2]
[354994270,1740858664848,-544.81,0.00026027,2]
[354994271,1740858664858,-1225.41,0.00026027,2]
[354994272,1740858664868,-500.0,0.00026027,2]
[354994273,1740858664878,-650.4,0.00026027,2]
[354994274,1740858664887,-1646.57,0.00026027,2]
[354994275,1740858664896,-500.0,0.00026027,2]
[354994276,1740858664906,-500.0,0.00026027,2]
[354994277,1740858664915,-500.0,0.00026027,2]
[354994278,1740858664925,-574.95,0.00026027,2]
[354994279,1740858664935,-1000.0,0.00026027,2]
[354994280,1740858664944,-548.18,0.00026027,2]
[354994281,1740858664954,-1162.75,0.00026027,2]
[354994282,1740858664963,-500.0,0.00026027,2]
[354994283,1740858664973,-550.88,0.00026027,2]
[354994284,1740858664982,-500.0,0.00026027,2]
[354994285,1740858664992,-500.0,0.00026027,2]
[354994286,1740858665001,-574.67,0.00026027,2]
[354994287,1740858665011,-500.0,0.00026027,2]
[354994288,1740858665021,-530.38,0.00026027,2]
[354994289,1740858665030,-606.9,0.00026027,2]
[354994290,1740858665040,-500.0,0.00026027,2]
[354994291,1740858665050,-731.69,0.00026027,2]
[354994292,1740858665060,-500.0,0.00026027,2]
[354994293,1740858665070,-500.0,0.00026027,2]
[354994294,1740858665079,-500.0,0.00026027,2]
[354994295,1740858665089,-742.69,0.00026027,2]
[354994296,1740858665098,-500.0,0.00026027,2]
[354994297,1740858665107,-553.15,0.00026027,2]
[354994298,1740858665117,-500.0,0.00026027,2]
[354994299,1740858665126,-500.0,0.00026027,2]
[354994300,1740858665136,-546.6,0.00026027,2]
[354994301,1740858665146,-938.89,0.00026027,2]
[354994302,1740858665155,-500.0,0.00026027,2]
[354994303,1740858665165,-500.0,0.00026027,2]
[354994304,1740858665174,-500.0,0.00026027,2]
[354994305,1740858665183,-500.0,0.00026027,2]
[354994306,1740858665193,-500.0,0.00026027,2]
[354994307,1740858665202,-500.0,0.00026027,2]
[354994308,1740858665212,-500.0,0.00026027,2]
[354994309,1740858665221,-500.0,0.00026027,2]
[354994310,1740858665231,-500.0,0.00026027,2]
[354994311,1740858665242,-500.0,0.00026027,2]
[354994312,1740858665254,-500.0,0.00026027,2]
[354994313,1740858665264,-702.7,0.00026027,2]
[354994314,1740858665274,-500.0,0.00026027,2]
[354994315,1740858665283,-500.0,0.00026027,2]
[354994316,1740858665293,-500.0,0.00026027,2]
[354994317,1740858665303,-962.96,0.00026027,2]
[354994318,1740858665312,-871.98,0.00026027,2]
[354994319,1740858665322,-690.67,0.00026027,2]
[354994320,1740858665331,-500.0,0.00026027,2]
[354994321,1740858665341,-4231.37,0.00026027,2]
[354994322,1740858665350,-500.0,0.00026027,2]
[354994323,1740858665360,-500.0,0.00026027,2]
[354994324,1740858665369,-539.33,0.00026027,2]
[354994325,1740858665378,-500.0,0.00026027,2]
[354994326,1740858665387,-741.36,0.00026027,2]
[354994327,1740858665396,-151.0,0.00026027,7]
[354994328,1740858665406,-601.03,0.00026027,2]
[354994329,1740858665416,-6071.89,0.00026027,2]
[354994330,1740858665425,-845.71,0.00026027,2]
[354994331,1740858665435,-720.23,0.00026027,2]
[354994332,1740858665445,-569.42,0.00026027,2]
[354994333,1740858665454,-500.0,0.00026027,2]
[354994334,1740858665464,-500.0,0.00026027,2]
[354994335,1740858665473,-500.0,0.00026027,2]
[354994336,1740858665483,-569.65,0.00026027,2]
[354994337,1740858665492,-683.45,0.00026027,2]
[354994338,1740858665501,-838.27,0.00026027,2]
[354994339,1740858665512,-500.0,0.00026027,2]
[354994340,1740858665522,-837.72,0.00026027,2]
[354994341,1740858665531,-825.34,0.00026027,2]
[354994342,1740858665541,-500.0,0.00026027,2]
[354994343,1740858665551,-500.0,0.00026027,2]